bitfinex/quotes_BTCUSD_20250208
["timestamp","ask_amount","ask_price","bid_price","bid_amount"]
[1739055159059,0.15570082,96620.0,96607.0,0.1274]
[1739055159270,0.15570082,96620.0,96608.0,0.01131527]
[1739055160577,0.15570082,96620.0,96608.0,0.01231527]
[1739055161583,0.15570082,96620.0,96608.0,0.01331527]
[1739055161989,0.15570082,96620.0,96612.0,0.0001067]
[1739055162285,0.1559249,96620.0,96613.0,0.01129527]
[1739055164131,0.155249,96619.0,96613.0,0.01129527]
[1739055164750,0.155249,96619.0,96613.0,0.01229527]
[1739055165135,0.155249,96619.0,96613.0,0.001]
[1739055165295,0.155249,96619.0,96613.0,0.005]
[1739055167452,0.15,96619.0,96613.0,0.005]
[1739055167835,0.14602838,96619.0,96613.0,0.005]
[1739055169374,0.155248,96619.0,96613.0,0.005]
[1739055169962,0.155251,96618.0,96613.0,0.005]
[1739055170808,0.155251,96618.0,96613.0,0.003]
[1739055171010,0.155251,96618.0,96613.0,0.002]
[1739055171391,0.155251,96618.0,96613.0,0.004]
[1739055173328,0.14458815,96618.0,96613.0,0.004]
[1739055173529,0.00197168,96620.0,96613.0,0.004]
[1739055173850,0.155253,96617.0,96613.0,0.004]
[1739055174194,0.15550192,96617.0,96613.0,0.004]
[1739055174394,0.00024892,96617.0,96613.0,0.002]
[1739055174697,0.00024892,96617.0,96613.0,0.001]
[1739055175168,0.00024892,96617.0,96613.0,0.003]
[1739055175975,0.00024892,96617.0,96613.0,0.002]
[1739055176399,0.00024892,96617.0,96613.0,0.005]
[1739055179544,0.1506779,96620.0,96613.0,0.005]
[1739055180349,0.1506779,96620.0,96612.0,0.0001067]
[1739055180584,0.155255,96616.0,96612.0,0.0001067]
[1739055180786,0.155255,96616.0,96613.0,0.002]
[1739055181576,0.155255,96616.0,96612.0,0.0001067]
[1739055181727,0.155255,96616.0,96612.0,0.0031067]
[1739055181916,0.155255,96616.0,96612.0,0.0041067]
[1739055182819,0.207002,96618.0,96612.0,0.0041067]
[1739055183020,0.155255,96615.0,96612.0,0.0011067]
[1739055183227,0.155255,96615.0,96612.0,0.0001067]
[1739055183436,0.155255,96615.0,96613.0,0.006]
[1739055183636,0.155255,96616.0,96613.0,0.003]
[1739055183866,0.155255,96615.0,96612.0,0.0001067]
[1739055184267,0.155255,96615.0,96612.0,0.0041067]
[1739055184533,0.155255,96615.0,96612.0,0.0061067]
[1739055184737,0.155255,96615.0,96612.0,0.0041067]
[1739055185138,0.155255,96615.0,96612.0,0.0071067]
[1739055187045,0.155255,96615.0,96613.0,0.0001067]
[1739055187435,0.155253,96617.0,96613.0,0.0001067]
[1739055187655,0.155252,96618.0,96613.0,0.0001067]
[1739055187976,0.1506779,96620.0,96613.0,0.0001067]
[1739055188122,0.155253,96617.0,96613.0,0.0071067]
[1739055188322,0.155251,96618.0,96613.0,0.0071067]
[1739055188879,0.155253,96617.0,96613.0,0.0071067]
[1739055189288,0.155253,96617.0,96613.0,0.0031067]
[1739055189484,0.155253,96617.0,96613.0,0.0001067]
[1739055189692,0.155253,96617.0,96613.0,0.0021067]
[1739055189846,0.155253,96617.0,96613.0,0.0041067]
[1739055190084,0.155253,96617.0,96613.0,0.0001067]
[1739055190504,0.155253,96617.0,96613.0,0.0051067]
[1739055193978,0.362249,96619.0,96613.0,0.0051067]
[1739055194426,0.155253,96617.0,96613.0,0.0051067]
[1739055195038,0.15525,96619.0,96613.0,0.0051067]
[1739055195257,0.155252,96617.0,96613.0,0.0051067]
[1739055195456,0.15525,96618.0,96613.0,0.0021067]
[1739055195793,0.15525,96618.0,96613.0,0.0041067]
[1739055196411,0.15525,96618.0,96613.0,0.0021067]
[1739055196808,0.15525,96618.0,96613.0,0.0041067]
[1739055197006,0.15525,96618.0,96613.0,0.0021067]
[1739055197827,0.20829179,96619.0,96613.0,0.0041067]
[1739055197958,0.155252,96617.0,96613.0,0.0041067]
[1739055198159,0.0006779,96620.0,96613.0,0.0041067]
[1739055198359,0.155252,96618.0,96613.0,0.0041067]
[1739055198584,0.15,96619.0,96613.0,0.0041067]
[1739055198786,0.30525,96619.0,96613.0,0.0041067]
[1739055198983,0.15525,96618.0,96613.0,0.0041067]
[1739055199601,0.15525,96618.0,96613.0,0.0001067]
[1739055199807,0.15525,96618.0,96613.0,0.0031067]
[1739055200170,0.15525,96618.0,96613.0,0.0021067]
[1739055200370,0.15,96619.0,96613.0,0.0021067]
[1739055200625,0.15525,96618.0,96613.0,0.0041067]
[1739055201385,0.15525,96618.0,96613.0,0.0021067]
[1739055201586,0.15,96619.0,96613.0,0.0021067]
[1739055202010,0.15525,96618.0,96613.0,0.0001067]
[1739055202207,0.15525,96618.0,96613.0,0.0021067]
[1739055203104,0.155253,96617.0,96613.0,0.0001067]
[1739055203320,0.155253,96617.0,96613.0,0.0041067]
[1739055203471,0.155253,96617.0,96613.0,0.0021067]
[1739055203814,0.15525,96618.0,96613.0,0.0041067]
[1739055203963,0.155252,96617.0,96613.0,0.0041067]
[1739055204178,0.155252,96617.0,96613.0,0.0021067]
[1739055204379,0.155252,96617.0,96613.0,0.0041067]
[1739055204740,0.155252,96617.0,96613.0,0.0021067]
[1739055205526,0.155252,96617.0,96613.0,0.0051067]
[1739055206894,0.155252,96617.0,96613.0,0.0031067]
[1739055207096,0.155252,96617.0,96613.0,0.0051067]
[1739055209670,0.207001,96618.0,96613.0,0.0051067]
[1739055209975,0.155252,96617.0,96613.0,0.0051067]
[1739055210189,0.155253,96616.0,96613.0,0.0051067]
[1739055210394,0.0006779,96620.0,96613.0,0.0051067]
[1739055210541,0.207001,96618.0,96613.0,0.0031067]
[1739055210766,0.155252,96617.0,96613.0,0.0051067]
[1739055210969,0.15525,96619.0,96613.0,0.0001067]
[1739055211170,0.15525,96619.0,96613.0,0.0021067]
[1739055211534,0.15525,96619.0,96613.0,0.0051067]
[1739055211732,0.15525,96618.0,96613.0,0.0001067]
[1739055211855,0.15525,96618.0,96613.0,0.0021067]
[1739055212235,0.15525,96618.0,96613.0,0.0051067]
[1739055212663,0.15525,96618.0,96613.0,0.0021067]
[1739055212841,0.15525,96618.0,96613.0,0.0041067]
[1739055213825,0.15525,96618.0,96613.0,0.0021067]
[1739055214024,0.15525,96618.0,96613.0,0.0041067]
[1739055214361,0.30525,96619.0,96613.0,0.0021067]
[1739055214664,0.30525,96619.0,96613.0,0.0041067]
[1739055214873,0.155252,96617.0,96613.0,0.0041067]
[1739055215222,0.155252,96617.0,96613.0,0.0021067]
[1739055215461,0.15525,96618.0,96613.0,0.0021067]
[1739055217175,0.15525,96618.0,96613.0,0.0001067]
[1739055217377,0.15525,96618.0,96613.0,0.0051067]
[1739055217578,0.15525,96618.0,96613.0,0.0031067]
[1739055217872,0.15525,96618.0,96613.0,0.0051067]
[1739055218303,0.15525,96618.0,96613.0,0.0021067]
[1739055218482,0.15525,96618.0,96613.0,0.0041067]
[1739055221007,0.15,96619.0,96613.0,0.0041067]
[1739055221008,0.155252,96617.0,96613.0,0.0041067]
[1739055221330,0.15,96619.0,96613.0,0.0041067]
[1739055221462,0.30525,96619.0,96613.0,0.0041067]
[1739055221863,0.15,96619.0,96613.0,0.0021067]
[1739055222089,0.155251,96618.0,96613.0,0.0051067]
[1739055222906,0.15525,96618.0,96613.0,0.0051067]
[1739055223375,0.30525,96619.0,96613.0,0.0051067]
[1739055223544,0.15,96619.0,96613.0,0.0051067]
[1739055223742,0.155251,96618.0,96613.0,0.0031067]
[1739055223979,0.15654582,96617.0,96613.0,0.0001067]
[1739055224180,0.00129382,96617.0,96613.0,0.0001067]
[1739055224333,0.00129382,96617.0,96613.0,0.0041067]
[1739055224845,0.00129382,96617.0,96613.0,0.0001067]
[1739055225040,0.00129382,96617.0,96613.0,0.0031067]
[1739055225264,0.15525,96618.0,96613.0,0.0051067]
[1739055225470,0.15525,96618.0,96613.0,0.0031067]
[1739055226269,0.30547308,96619.0,96613.0,0.0031067]
[1739055226790,0.30547308,96619.0,96613.0,0.0051067]
[1739055226993,0.30547308,96619.0,96613.0,0.0031067]
[1739055227347,0.30547308,96619.0,96613.0,0.0051067]
[1739055227536,0.30547308,96619.0,96613.0,0.0021067]
[1739055227946,0.30547308,96619.0,96613.0,0.0041067]
[1739055229110,0.30547308,96619.0,96613.0,0.0021067]
[1739055229429,0.30547308,96619.0,96613.0,0.0041067]
[1739055231413,0.15525,96618.0,96613.0,0.0041067]
[1739055232012,0.155252,96617.0,96613.0,0.0041067]
[1739055232207,0.00022408,96619.0,96613.0,0.0041067]
[1739055232418,0.00022408,96619.0,96613.0,0.0021067]
[1739055232419,0.155255,96616.0,96613.0,0.0021067]
[1739055232621,0.155255,96616.0,96613.0,0.0041067]
[1739055233578,0.155255,96616.0,96613.0,0.0021067]
[1739055233781,0.155255,96616.0,96613.0,0.0001067]
[1739055233935,0.155255,96616.0,96613.0,0.0021067]
[1739055234528,0.155255,96616.0,96613.0,0.0031067]
[1739055234943,0.155255,96616.0,96613.0,0.0061067]
[1739055238611,0.20722408,96618.0,96613.0,0.0061067]
[1739055240404,0.00022408,96618.0,96613.0,0.0031067]
[1739055240590,0.155257,96614.0,96613.0,0.0001067]
[1739055240790,0.155257,96614.0,96613.0,0.0021067]
[1739055241099,0.155257,96614.0,96613.0,0.0041067]
[1739055241300,0.155257,96614.0,96613.0,0.0021067]
[1739055241797,0.155257,96614.0,96613.0,0.0041067]
[1739055241996,0.155257,96614.0,96613.0,0.0081067]
[1739055244855,0.155255,96616.0,96613.0,0.0081067]
[1739055245000,0.207002,96617.0,96613.0,0.0081067]
[1739055245202,0.155257,96614.0,96613.0,0.0081067]
[1739055246843,0.155257,96614.0,96613.0,0.0041067]
[1739055247068,0.155257,96614.0,96613.0,0.0001067]
[1739055247274,0.155257,96614.0,96613.0,0.0021067]
[1739055247476,0.155257,96614.0,96613.0,0.0031067]
[1739055247758,0.155257,96614.0,96613.0,0.0041067]
[1739055247908,0.1565509,96614.0,96613.0,0.0041067]
[1739055248130,0.1565509,96614.0,96613.0,0.0081067]
[1739055248333,0.155257,96614.0,96613.0,0.0081067]
[1739055248596,0.1565509,96614.0,96613.0,0.0081067]
[1739055248735,0.155257,96614.0,96613.0,0.0081067]
[1739055249507,0.1565509,96614.0,96613.0,0.0081067]
[1739055250126,0.155257,96614.0,96613.0,0.0081067]
[1739055259900,0.155257,96614.0,96613.0,0.0041067]
[1739055261781,0.155257,96614.0,96613.0,0.0081067]
[1739055262961,0.155257,96614.0,96613.0,0.0041067]
[1739055263361,0.155257,96614.0,96613.0,0.0081067]
[1739055274730,0.00129391,96614.0,96607.0,0.04357284]
[1739055274901,0.155266,96609.0,96607.0,0.04357284]
[1739055275071,0.155266,96609.0,96608.0,0.01262999]
[1739055275272,0.155266,96609.0,96607.0,0.04357284]
[1739055276077,0.155266,96608.0,96607.0,0.05157284]
[1739055276279,0.155266,96608.0,96607.0,0.04757284]
[1739055276707,0.155266,96608.0,96607.0,0.04857284]
[1739055276993,0.155266,96608.0,96607.0,0.04357284]
[1739055277207,0.155266,96608.0,96607.0,0.05057284]
[1739055277836,0.155266,96608.0,96607.0,0.04957284]
[1739055280441,0.156266,96608.0,96607.0,0.05657284]
[1739055281554,0.20722508,96618.0,96607.0,0.04357284]
[1739055281894,0.207002,96617.0,96608.0,0.01278166]
[1739055282095,0.15526,96612.0,96608.0,0.01278166]
[1739055282855,0.15526,96612.0,96607.0,0.04357284]
[1739055283204,0.15526,96612.0,96607.0,0.05457284]
[1739055283205,0.001,96608.0,96607.0,0.05457284]
[1739055283407,0.001,96608.0,96607.0,0.0673585]
[1739055283645,0.001,96608.0,96607.0,0.0623585]
[1739055283848,0.207009,96614.0,96607.0,0.0563585]
[1739055284029,0.155261,96612.0,96607.0,0.0603585]
[1739055284228,0.155261,96612.0,96608.0,0.0001067]
[1739055284454,0.155261,96612.0,96609.0,0.01277766]
[1739055285296,0.155263,96610.0,96609.0,0.01277766]
[1739055285425,0.155262,96611.0,96609.0,0.01277766]
[1739055285633,0.155262,96611.0,96608.0,0.0001067]
[1739055285857,0.155262,96611.0,96609.0,0.01277766]
[1739055286291,0.155262,96611.0,96608.0,0.0001067]
[1739055286647,0.155262,96611.0,96609.0,0.01677766]
[1739055287191,0.155262,96611.0,96608.0,0.0001067]
[1739055287534,0.155262,96611.0,96609.0,0.01277766]
[1739055287736,0.155262,96611.0,96608.0,0.0051067]
[1739055287960,0.155262,96611.0,96609.0,0.01677766]
[1739055288242,0.155262,96611.0,96609.0,0.005]
[1739055290000,0.155262,96611.0,96609.0,0.009]
[1739055291895,0.00022408,96618.0,96610.0,0.0488]
[1739055292094,0.155259,96613.0,96610.0,0.0488]
[1739055292643,0.155254,96616.0,96612.0,0.0827]
[1739055292844,0.155255,96615.0,96612.0,0.0827]
[1739055293057,0.155255,96615.0,96613.0,0.01276165]
[1739055293250,0.155257,96614.0,96613.0,0.01276165]
[1739055293635,0.155257,96614.0,96612.0,0.0827]
[1739055293801,0.155257,96614.0,96613.0,0.01276165]
[1739055294000,0.155258,96613.0,96612.0,0.0827]
[1739055294516,0.155256,96615.0,96613.0,0.003]
[1739055294979,0.155256,96615.0,96612.0,0.0857]
[1739055295196,0.207006,96616.0,96612.0,0.0897]
[1739055295331,0.155257,96614.0,96613.0,0.01276165]
[1739055296355,0.15548108,96614.0,96613.0,0.01276165]
[1739055296964,0.15548108,96614.0,96613.0,0.01576165]
[1739055297171,0.15548108,96614.0,96613.0,0.01876165]
[1739055297374,0.00022408,96614.0,96613.0,0.01576165]
[1739055297639,0.00022408,96614.0,96613.0,0.01876165]
[1739055299247,0.15548108,96614.0,96613.0,0.01876165]
[1739055299790,0.00022408,96618.0,96613.0,0.01876165]
[1739055300014,0.155257,96614.0,96613.0,0.01876165]
[1739055300720,0.155257,96614.0,96613.0,0.01576165]
[1739055300913,0.155257,96614.0,96613.0,0.01676165]
[1739055301249,0.155257,96614.0,96613.0,0.01576165]
[1739055301856,0.155257,96614.0,96613.0,0.003]
[1739055302745,0.155257,96614.0,96613.0,0.006]
[1739055308764,0.155257,96614.0,96613.0,0.0061067]
[1739055315702,0.00022408,96616.0,96613.0,0.0862067]
[1739055316143,0.00022408,96616.0,96613.0,0.0538404]
[1739055316922,0.155255,96615.0,96613.0,0.0558404]
[1739055317131,0.155255,96615.0,96614.0,0.01063138]
[1739055317348,0.155255,96615.0,96613.0,0.002]
[1739055318043,0.155255,96615.0,96613.0,0.004]
[1739055318176,0.155257,96614.0,96613.0,0.002]
[1739055318604,0.155257,96614.0,96608.0,0.0001067]
[1739055318788,0.155257,96614.0,96613.0,0.003]
[1739055319511,0.155257,96614.0,96613.0,0.005]
[1739055319731,0.155257,96614.0,96613.0,0.003]
[1739055319930,0.00022408,96616.0,96608.0,0.0001067]
[1739055320128,0.207007,96615.0,96613.0,0.002]
[1739055320355,0.155257,96614.0,96613.0,0.002]
[1739055320935,0.155259,96613.0,96608.0,0.0001067]
[1739055321136,0.155259,96613.0,96608.0,0.0011067]
[1739055321343,0.01938795,96612.0,96609.0,0.01065138]
[1739055321725,0.155263,96611.0,96609.0,0.01065138]
[1739055322182,0.155263,96611.0,96608.0,0.0011067]
[1739055322584,0.01938795,96610.0,96608.0,0.0011067]
[1739055322729,0.01938795,96610.0,96608.0,0.0051067]
[1739055322935,0.17465095,96610.0,96608.0,0.0051067]
[1739055323179,0.17465095,96610.0,96608.0,0.0041067]
[1739055323379,0.01938795,96610.0,96608.0,0.0041067]
[1739055323991,0.01938795,96609.0,96608.0,0.0081067]
[1739055324214,0.01938795,96609.0,96608.0,0.0041067]
[1739055324558,0.01938795,96609.0,96608.0,0.0081067]
[1739055324910,0.01938795,96609.0,96608.0,0.0041067]
[1739055325111,0.02038795,96609.0,96608.0,0.0091067]
[1739055325316,0.02038795,96609.0,96608.0,0.0051067]
[1739055326724,0.02038795,96609.0,96608.0,0.0091067]
[1739055327044,0.02038795,96609.0,96608.0,0.01976208]
[1739055327540,0.02038795,96609.0,96608.0,0.0091067]
[1739055327744,0.02038795,96609.0,96604.0,0.0440897]
[1739055327886,0.02038795,96609.0,96608.0,0.01065538]
[1739055328088,0.02038795,96609.0,96605.0,0.10250365]
[1739055328367,0.02038795,96609.0,96608.0,0.01065538]
[1739055328609,0.01938795,96609.0,96605.0,0.10250365]
[1739055328800,0.02038795,96609.0,96608.0,0.01065538]
[1739055328953,0.02038795,96609.0,96605.0,0.10250365]
[1739055329151,0.02038795,96609.0,96608.0,0.01065538]
[1739055329352,0.02038795,96609.0,96605.0,0.10250365]
[1739055329552,0.02038795,96609.0,96608.0,0.01065538]
[1739055329759,0.02038795,96609.0,96605.0,0.10250365]
[1739055329982,0.02038795,96609.0,96608.0,0.01065538]
[1739055330141,0.02038795,96609.0,96605.0,0.10250365]
[1739055330340,0.02038795,96609.0,96605.0,0.10650365]
[1739055330551,0.02038795,96609.0,96606.0,0.01066338]
[1739055330815,0.01938795,96609.0,96606.0,0.11316703]
[1739055330987,0.05039544,96608.0,96606.0,0.11316703]
[1739055332336,0.05039544,96607.0,96606.0,0.11416703]
[1739055333095,0.05039544,96607.0,96606.0,0.11816703]
[1739055333770,0.05039544,96607.0,96606.0,0.02066338]
[1739055334953,0.05039544,96607.0,96606.0,0.01]
[1739055335139,0.05039544,96607.0,96606.0,0.0091067]
[1739055335360,0.05039544,96607.0,96606.0,0.01985175]
[1739055335562,0.05039544,96607.0,96606.0,0.0141067]
[1739055336261,0.05039544,96607.0,96606.0,0.0091067]
[1739055336493,0.20566344,96607.0,96606.0,0.0091067]
[1739055336885,0.05039544,96607.0,96606.0,0.0091067]
[1739055338019,0.05139544,96607.0,96606.0,0.0151067]
[1739055343222,0.283413,96613.0,96606.0,0.0151067]
[1739055343445,0.155266,96609.0,96606.0,0.0151067]
[1739055344309,0.155266,96609.0,96606.0,0.0091067]
[1739055344523,0.155266,96609.0,96606.0,0.0001067]
[1739055344743,0.155266,96609.0,96606.0,0.0031067]
[1739055344991,0.155266,96609.0,96606.0,0.0071067]
[1739055345180,0.155266,96609.0,96606.0,0.0041067]
[1739055346089,0.156266,96609.0,96606.0,0.0091067]
[1739055347455,0.001,96609.0,96606.0,0.0091067]
[1739055348297,0.00251799,96609.0,96606.0,0.0091067]
[1739055348491,0.00122408,96609.0,96606.0,0.0091067]
[1739055348692,0.15648908,96609.0,96606.0,0.0091067]
[1739055349942,0.00122408,96609.0,96606.0,0.0091067]
[1739055350146,0.155267,96608.0,96606.0,0.0091067]
[1739055350358,0.00122408,96609.0,96606.0,0.0091067]
[1739055351049,0.15549008,96609.0,96606.0,0.0041067]
[1739055351294,0.001,96608.0,96606.0,0.0101067]
[1739055351879,0.15549008,96609.0,96606.0,0.0041067]
[1739055352076,0.15649008,96609.0,96606.0,0.0091067]
[1739055352922,0.15649008,96609.0,96607.0,0.0111934]
[1739055353330,0.15649008,96609.0,96606.0,0.0001067]
[1739055353529,0.15549008,96609.0,96606.0,0.0041067]
[1739055353734,0.001,96608.0,96606.0,0.0061067]
[1739055354075,0.156784,96609.0,96607.0,0.004]
[1739055354320,0.15549008,96609.0,96607.0,0.004]
[1739055354632,0.15649008,96609.0,96606.0,0.0051067]
[1739055354810,0.15649008,96609.0,96606.0,0.0091067]
[1739055355013,0.15549008,96609.0,96607.0,0.0111934]
[1739055355173,0.15649008,96609.0,96607.0,0.0161934]
[1739055355373,0.15649008,96609.0,96607.0,0.005]
[1739055355641,0.01936984,96608.0,96607.0,0.005]
[1739055356012,0.17463584,96608.0,96607.0,0.005]
[1739055356426,0.01936984,96608.0,96606.0,0.0001067]
[1739055356634,0.01936984,96608.0,96607.0,0.004]
[1739055357003,0.01936984,96608.0,96607.0,0.008]
[1739055357348,0.17463584,96608.0,96606.0,0.0001067]
[1739055357542,0.17563584,96608.0,96607.0,0.006]
[1739055357847,0.156266,96608.0,96607.0,0.006]
[1739055358299,0.155266,96608.0,96607.0,0.004]
[1739055358477,0.156266,96608.0,96607.0,0.004]
[1739055359194,0.17563629,96608.0,96607.0,0.004]
[1739055360221,0.17463629,96608.0,96607.0,0.004]
[1739055360423,0.17463629,96608.0,96607.0,0.01]
[1739055360637,0.02037029,96608.0,96607.0,0.01]
[1739055360831,0.05136266,96608.0,96607.0,0.01]
[1739055361281,0.20662866,96608.0,96607.0,0.01]
[1739055361804,0.16818178,96610.0,96607.0,0.01]
[1739055361979,0.00129393,96609.0,96607.0,0.01]
[1739055362359,0.16818178,96610.0,96607.0,0.01]
[1739055362674,0.155266,96608.0,96607.0,0.01]
[1739055363044,0.15655993,96608.0,96607.0,0.01]
[1739055363248,0.15655993,96608.0,96607.0,0.006]
[1739055363731,0.00129393,96608.0,96606.0,0.0001067]
[1739055363940,0.155268,96607.0,96606.0,0.0001067]
[1739055364182,0.15656195,96607.0,96606.0,0.0001067]
[1739055364584,0.155268,96607.0,96606.0,0.0001067]
[1739055364988,0.155268,96607.0,96606.0,0.0061067]
[1739055365185,0.155268,96607.0,96606.0,0.0111067]
[1739055365336,0.155268,96607.0,96606.0,0.0051067]
[1739055365540,0.155268,96607.0,96606.0,0.0111067]
[1739055365764,0.156268,96607.0,96606.0,0.0111067]
[1739055374234,0.1756337,96607.0,96606.0,0.0111067]
[1739055382603,0.0203657,96607.0,96606.0,0.0111067]
[1739055399543,0.15,96617.0,96606.0,0.0111067]
[1739055399802,0.15,96617.0,96596.0,0.12129716]
[1739055399976,0.155266,96609.0,96596.0,0.12129716]
[1739055400184,0.155266,96609.0,96597.0,0.01208775]
[1739055401193,0.155266,96609.0,96606.0,0.002]
[1739055401418,0.155266,96609.0,96606.0,0.003]
[1739055401622,0.155266,96609.0,96606.0,0.002]
[1739055403126,0.155266,96609.0,96597.0,0.004]
[1739055403339,0.156266,96609.0,96598.0,0.01208375]
[1739055403549,0.156266,96609.0,96606.0,0.001]
[1739055403910,0.155266,96609.0,96606.0,0.001]
[1739055404117,0.155266,96609.0,96606.0,0.004]
[1739055405331,0.155266,96609.0,96606.0,0.005]
[1739055407943,0.155266,96609.0,96606.0,0.001]
[1739055408142,0.155266,96609.0,96596.0,0.1553907]
[1739055408570,0.155266,96609.0,96606.0,0.003]
[1739055409283,0.155266,96609.0,96606.0,0.006]
[1739055409492,0.155265,96609.0,96606.0,0.006]
[1739055409918,0.155265,96609.0,96606.0,0.003]
[1739055411265,0.00022408,96610.0,96606.0,0.003]
[1739055411415,0.15548808,96610.0,96606.0,0.003]
[1739055412014,0.15548808,96610.0,96606.0,0.006]
[1739055412293,0.15548808,96610.0,96606.0,0.003]
[1739055412294,0.0193695,96609.0,96606.0,0.003]
[1739055412674,0.0193695,96609.0,96606.0,0.006]
[1739055413242,0.0193695,96608.0,96606.0,0.003]
[1739055413689,0.0193695,96608.0,96606.0,0.006]
[1739055414092,0.0193695,96608.0,96606.0,0.003]
[1739055414408,0.0193695,96607.0,96597.0,0.155284]
[1739055414610,0.0193695,96607.0,96606.0,0.003]
[1739055414782,0.0193695,96607.0,96598.0,0.01208375]
[1739055414990,0.0193695,96607.0,96606.0,0.01205174]
[1739055415187,0.0193695,96607.0,96606.0,0.003]
[1739055415364,0.0193695,96607.0,96606.0,0.006]
[1739055415789,0.0193695,96607.0,96606.0,0.01]
[1739055416144,0.0193695,96607.0,96606.0,0.007]
[1739055416329,0.0203695,96607.0,96606.0,0.01]
[1739055420549,0.46557398,97918.0,96606.0,0.01]
[1739055420682,0.20830395,96614.0,96606.0,0.01]
[1739055421403,0.155265,96609.0,96606.0,0.007]
[1739055421585,0.155265,96609.0,96597.0,0.155283]
[1739055421786,0.155265,96609.0,96606.0,0.001]
[1739055422385,0.155265,96609.0,96606.0,0.003]
[1739055422842,0.155265,96609.0,96606.0,0.001]
[1739055423145,0.155265,96609.0,96606.0,0.004]
[1739055423979,0.155265,96609.0,96606.0,0.003]
[1739055424312,0.155265,96609.0,96606.0,0.006]
[1739055431631,0.155265,96609.0,96606.0,0.003]
[1739055432051,0.155265,96609.0,96606.0,0.007]
[1739055432262,0.155265,96609.0,96606.0,0.0071067]
[1739055432435,0.207016,96611.0,96606.0,0.0071067]
[1739055432436,0.155263,96610.0,96606.0,0.0071067]
[1739055433239,0.155263,96610.0,96606.0,0.0031067]
[1739055433673,0.155263,96610.0,96606.0,0.0041067]
[1739055433876,0.155263,96610.0,96606.0,0.0071067]
[1739055434343,0.155263,96610.0,96606.0,0.0031067]
[1739055434529,0.01936155,96609.0,96606.0,0.0031067]
[1739055435233,0.01936155,96609.0,96606.0,0.0071067]
[1739055436043,0.01936155,96608.0,96606.0,0.0071067]
[1739055436419,0.01936155,96608.0,96606.0,0.0031067]
[1739055436598,0.01936155,96608.0,96606.0,0.0071067]
[1739055437005,0.01936155,96607.0,96606.0,0.0031067]
[1739055437474,0.01936155,96607.0,96606.0,0.0071067]
[1739055437826,0.01936155,96607.0,96606.0,0.0001067]
[1739055438165,0.02036155,96607.0,96606.0,0.0071067]
[1739055438369,0.02036155,96607.0,96606.0,0.0041067]
[1739055438763,0.02036155,96607.0,96606.0,0.0081067]
[1739055438966,0.02036155,96607.0,96606.0,0.02015844]
[1739055441293,0.02036155,96607.0,96606.0,0.0195989]
[1739055445127,0.02036155,96607.0,96606.0,0.0197056]
[1739055448763,0.02036155,96607.0,96606.0,0.00765386]
[1739055449235,0.01936155,96607.0,96606.0,0.0041067]
[1739055449449,0.02036155,96607.0,96606.0,0.0071067]
[1739055449872,0.02036155,96607.0,96606.0,0.0041067]
[1739055450083,0.01936155,96607.0,96606.0,0.0041067]
[1739055450291,0.02036155,96607.0,96606.0,0.0071067]
[1739055454993,0.02036155,96607.0,96606.0,0.0031067]
[1739055455403,0.01936155,96607.0,96606.0,0.0031067]
[1739055455604,0.02036155,96607.0,96606.0,0.0061067]
[1739055456129,0.01936155,96607.0,96606.0,0.0031067]
[1739055456308,0.01936155,96607.0,96606.0,0.0061067]
[1739055456449,0.02036155,96607.0,96606.0,0.0061067]
[1739055457137,0.02036155,96607.0,96606.0,0.0031067]
[1739055457476,0.02036155,96607.0,96606.0,0.0071067]
[1739055457724,0.02058563,96607.0,96606.0,0.0071067]
[1739055457902,0.02058563,96607.0,96606.0,0.01915844]
[1739055458108,0.02058563,96607.0,96606.0,0.0071067]
[1739055458306,0.02058563,96607.0,96606.0,0.01915844]
[1739055458489,0.02058563,96607.0,96606.0,0.0071067]
[1739055459038,0.02058563,96607.0,96606.0,0.01915844]
[1739055465925,0.207009,96614.0,96606.0,0.01915844]
[1739055466132,0.15526,96612.0,96606.0,0.01915844]
[1739055466694,0.15526,96612.0,96606.0,0.01215844]
[1739055466887,0.15526,96612.0,96606.0,0.0001067]
[1739055467102,0.15526,96612.0,96606.0,0.0011067]
[1739055467303,0.15526,96612.0,96607.0,0.01204774]
[1739055467504,0.15526,96612.0,96606.0,0.0011067]
[1739055467705,0.15526,96612.0,96608.0,0.01204374]
[1739055467917,0.15526,96612.0,96606.0,0.0001067]
[1739055468318,0.15526,96612.0,96607.0,0.01204774]
[1739055468724,0.15548408,96612.0,96606.0,0.0021067]
[1739055468942,0.15548408,96612.0,96608.0,0.01204374]
[1739055469274,0.15548408,96612.0,96606.0,0.0001067]
[1739055469470,0.15548408,96612.0,96609.0,0.01203973]
[1739055469782,0.00022408,96612.0,96607.0,0.003]
[1739055470047,0.00022408,96612.0,96606.0,0.0001067]
[1739055470267,0.00022408,96612.0,96608.0,0.01504374]
[1739055470499,0.15548508,96612.0,96608.0,0.005]
[1739055470708,0.15548508,96612.0,96602.0,0.0080109]
[1739055470897,0.00022408,96612.0,96609.0,0.01203973]
[1739055471045,0.00022408,96612.0,96607.0,0.002]
[1739055471279,0.15548408,96612.0,96607.0,0.002]
[1739055471471,0.15548408,96612.0,96602.0,0.0080109]
[1739055471676,0.15548408,96612.0,96608.0,0.01404374]
[1739055471875,0.15548408,96612.0,96607.0,0.003]
[1739055472476,0.15548408,96612.0,96607.0,0.002]
[1739055472871,0.15548408,96612.0,96608.0,0.01204374]
[1739055473303,0.15548408,96612.0,96607.0,0.002]
[1739055473496,0.15548408,96612.0,96607.0,0.005]
[1739055473711,0.15548408,96612.0,96608.0,0.01204374]
[1739055474156,0.15548408,96612.0,96607.0,0.003]
[1739055474387,0.00022408,96612.0,96608.0,0.001]
[1739055474629,0.00022408,96612.0,96608.0,0.01304374]
[1739055475087,0.00022408,96612.0,96608.0,0.001]
[1739055475326,0.00022408,96612.0,96602.0,0.0080109]
[1739055475560,0.00022408,96612.0,96607.0,0.001]
[1739055475825,0.15548408,96612.0,96607.0,0.001]
[1739055476470,0.15548408,96612.0,96608.0,0.01204374]
[1739055477028,0.15548408,96612.0,96607.0,0.001]
[1739055477431,0.15548408,96612.0,96608.0,0.002]
[1739055477629,0.15548408,96612.0,96608.0,0.01404374]
[1739055477827,0.01935468,96611.0,96608.0,0.002]